bitfinex-derivatives/quotes_BNBF0:USTF0_20250908
["timestamp","ask_amount","ask_price","bid_price","bid_amount"]
[1757365193607,0.61451998,878.06,874.69,0.19823412]
[1757365193803,0.61451998,878.05,874.69,0.19823412]
[1757365194107,0.61451998,878.04,874.69,0.19823412]
[1757365194308,2.5625663,878.0,874.69,0.19823412]
[1757365194608,0.61451998,877.99,874.69,0.19823412]
[1757365194903,0.61451998,877.98,874.69,0.19823412]
[1757365195205,0.61451998,877.97,874.69,0.19823412]
[1757365195406,0.61451998,877.96,874.69,0.19823412]
[1757365195600,0.61451998,877.95,874.69,0.19823412]
[1757365195800,2.5625663,878.0,874.69,0.19823412]
[1757365195801,0.61451998,877.94,874.69,0.19823412]
[1757365195999,0.61451998,877.93,874.69,0.19823412]
[1757365196202,0.61451998,877.92,874.69,0.19823412]
[1757365196406,0.61451998,877.91,874.69,0.19823412]
[1757365196605,0.61451998,877.9,874.69,0.19823412]
[1757365196907,0.61451998,877.89,874.69,0.19823412]
[1757365197107,0.61451998,877.88,874.69,0.19823412]
[1757365197403,0.61451998,877.87,874.69,0.19823412]
[1757365197703,0.61451998,877.86,874.69,0.19823412]
[1757365197907,0.61451998,877.85,874.69,0.19823412]
[1757365198110,0.61451998,877.84,874.69,0.19823412]
[1757365198307,0.61451998,877.83,874.69,0.19823412]
[1757365198505,0.61451998,877.82,874.69,0.19823412]
[1757365198703,0.61451998,877.81,874.69,0.19823412]
[1757365198908,2.5625663,877.87,874.69,0.19823412]
[1757365199409,0.61202771,877.86,874.69,0.19823412]
[1757365199608,0.61202771,877.85,874.69,0.19823412]
[1757365199805,0.61202771,877.84,874.69,0.19823412]
[1757365200006,0.61202771,877.83,874.69,0.19823412]
[1757365200206,0.61202771,877.82,874.69,0.19823412]
[1757365200409,0.61202771,877.81,874.69,0.19823412]
[1757365200609,2.5625663,877.78,874.69,0.19823412]
[1757365200807,0.61202771,877.77,874.69,0.19823412]
[1757365201010,2.5625663,877.75,874.69,0.19823412]
[1757365201305,0.61202771,877.74,874.69,0.19823412]
[1757365201508,0.61202771,877.73,874.69,0.19823412]
[1757365201806,0.61202771,877.72,874.69,0.19823412]
[1757365202009,2.5625663,877.64,874.69,0.19823412]
[1757365202208,0.61202771,877.63,874.69,0.19823412]
[1757365202406,0.61202771,877.62,874.69,0.19823412]
[1757365202607,2.5625663,877.6,874.69,0.19823412]
[1757365202807,0.61202771,877.59,874.69,0.19823412]
[1757365203010,0.61202771,877.58,874.69,0.19823412]
[1757365203214,0.61202771,877.57,874.69,0.19823412]
[1757365203416,0.61202771,877.56,874.69,0.19823412]
[1757365203618,0.61202771,877.55,874.69,0.19823412]
[1757365203818,0.61202771,877.54,874.69,0.19823412]
[1757365204117,0.61202771,877.53,874.69,0.19823412]
[1757365204320,0.61202771,877.52,874.69,0.19823412]
[1757365204517,0.61202771,877.51,874.69,0.19823412]
[1757365204714,0.61202771,877.5,874.69,0.19823412]
[1757365204917,0.61202771,877.49,874.69,0.19823412]
[1757365205117,0.61202771,877.48,874.69,0.19823412]
[1757365205415,0.61202771,877.47,874.69,0.19823412]
[1757365205619,0.61202771,877.46,874.69,0.19823412]
[1757365205819,0.61202771,877.45,874.69,0.19823412]
[1757365206017,0.61202771,877.44,874.69,0.19823412]
[1757365206321,0.61202771,877.43,874.69,0.19823412]
[1757365206518,0.61202771,877.42,874.69,0.19823412]
[1757365206821,2.5625663,877.35,874.69,0.19823412]
[1757365207015,0.61202771,877.34,874.69,0.19823412]
[1757365207216,0.61202771,877.33,874.69,0.19823412]
[1757365207517,0.61202771,877.32,874.69,0.19823412]
[1757365207720,0.61202771,877.31,874.69,0.19823412]
[1757365207918,0.61202771,877.3,874.69,0.19823412]
[1757365208117,0.61202771,877.29,874.69,0.19823412]
[1757365208316,2.5625663,877.27,874.69,0.19823412]
[1757365208516,1.5151232,876.45,874.69,0.19823412]
[1757365208821,0.61202771,876.44,874.69,0.19823412]
[1757365209021,1.5151232,876.45,874.69,0.19823412]
[1757365209022,0.61202771,876.43,874.69,0.19823412]
[1757365209222,0.61202771,876.42,874.69,0.19823412]
[1757365209423,0.61202771,876.41,874.69,0.19823412]
[1757365209621,0.61202771,876.4,874.69,0.19823412]
[1757365209921,0.61202771,876.39,874.69,0.19823412]
[1757365210223,1.5151232,876.35,874.69,0.19823412]
[1757365210420,2.12715091,876.34,874.69,0.19823412]
[1757365210720,0.61202771,876.33,874.69,0.19823412]
[1757365210923,0.61202771,876.32,874.69,0.19823412]
[1757365211122,0.61202771,876.31,874.69,0.19823412]
[1757365211327,1.5151232,876.23,874.69,0.19823412]
[1757365211525,1.5151232,876.2,874.69,0.19823412]
[1757365211727,2.12715091,876.19,874.69,0.19823412]
[1757365212021,0.61202771,876.18,874.69,0.19823412]
[1757365212225,0.61202771,876.17,874.69,0.19823412]
[1757365212526,0.61202771,876.16,874.69,0.19823412]
[1757365212825,0.61202771,876.15,874.69,0.19823412]
[1757365213025,0.61202771,876.14,874.69,0.19823412]
[1757365213221,0.61202771,876.13,874.69,0.19823412]
[1757365213420,0.61202771,876.12,874.69,0.19823412]
[1757365213625,0.61202771,876.11,874.69,0.19823412]
[1757365213823,0.61202771,876.1,874.69,0.19823412]
[1757365214122,0.61202771,876.09,874.69,0.19823412]
[1757365214325,0.61202771,876.08,874.69,0.19823412]
[1757365214622,0.61202771,876.07,874.69,0.19823412]
[1757365214925,0.61202771,876.06,874.69,0.19823412]
[1757365215223,0.61202771,876.05,874.69,0.19823412]
[1757365215427,0.61202771,876.04,874.69,0.19823412]
[1757365215625,0.61202771,876.03,874.69,0.19823412]
[1757365215828,0.61202771,876.02,874.69,0.19823412]
[1757365216025,0.61202771,876.01,874.69,0.19823412]
[1757365216226,0.61202771,876.0,874.69,0.19823412]
[1757365216429,0.61202771,875.99,874.69,0.19823412]
[1757365216729,0.61202771,875.98,874.69,0.19823412]
[1757365217031,0.61202771,875.97,874.69,0.19823412]
[1757365217330,0.61202771,875.96,874.69,0.19823412]
[1757365217527,0.61202771,875.95,874.69,0.19823412]
[1757365217733,0.61202771,875.94,874.69,0.19823412]
[1757365217931,0.61202771,875.93,874.69,0.19823412]
[1757365218127,0.61202771,875.92,874.69,0.19823412]
[1757365218333,0.61202771,875.91,874.69,0.19823412]
[1757365218532,0.61202771,875.9,874.69,0.19823412]
[1757365218730,0.61202771,875.89,874.69,0.19823412]
[1757365218934,0.61202771,875.88,874.69,0.19823412]
[1757365219133,0.61202771,875.87,874.69,0.19823412]
[1757365219435,1.5151232,876.21,874.69,0.19823412]
[1757365219634,0.61082788,876.2,874.69,0.19823412]
[1757365219835,0.61082788,876.19,874.69,0.19823412]
[1757365220034,0.61082788,876.18,874.69,0.19823412]
[1757365220234,0.61084645,876.17,874.69,0.19823412]
[1757365220436,0.61084645,876.16,874.69,0.19823412]
[1757365220633,0.61084645,876.15,874.69,0.19823412]
[1757365220836,0.61084645,876.14,874.69,0.19823412]
[1757365221035,0.61084645,876.13,874.69,0.19823412]
[1757365221234,0.61084645,876.12,874.69,0.19823412]
[1757365221432,0.61084645,876.11,874.69,0.19823412]
[1757365221636,0.61084645,876.1,874.69,0.19823412]
[1757365221833,0.61084645,876.09,874.69,0.19823412]
[1757365222037,0.61084645,876.08,874.69,0.19823412]
[1757365222238,0.61084645,876.07,874.69,0.19823412]
[1757365222538,0.61084645,876.06,874.69,0.19823412]
[1757365222736,1.5151232,876.21,874.69,0.19823412]
[1757365222737,0.61084645,876.05,874.69,0.19823412]
[1757365222938,0.61084645,876.04,874.69,0.19823412]
[1757365223134,0.61084645,876.03,874.69,0.19823412]
[1757365223438,0.61084645,876.02,874.69,0.19823412]
[1757365223635,0.61084645,876.01,874.69,0.19823412]
[1757365223833,0.61084645,876.0,874.69,0.19823412]
[1757365224035,0.61084645,875.99,874.69,0.19823412]
[1757365224235,0.61084645,875.98,874.69,0.19823412]
[1757365224436,0.61084645,875.97,874.69,0.19823412]
[1757365224738,0.61084645,875.96,874.69,0.19823412]
[1757365224938,0.61084645,875.95,874.69,0.19823412]
[1757365225137,0.61084645,875.94,874.69,0.19823412]
[1757365225335,0.61084645,875.93,874.69,0.19823412]
[1757365225536,0.61084645,875.92,874.69,0.19823412]
[1757365225739,0.61084645,875.91,874.69,0.19823412]
[1757365225939,0.61084645,875.9,874.69,0.19823412]
[1757365226138,0.61084645,875.89,874.69,0.19823412]
[1757365226439,0.61084645,875.88,874.69,0.19823412]
[1757365226637,0.61084645,875.87,874.69,0.19823412]
[1757365226941,1.5151232,876.11,874.69,0.19823412]
[1757365227139,0.61012345,876.1,874.69,0.19823412]
[1757365227337,0.61012345,876.09,874.69,0.19823412]
[1757365227538,0.61012345,876.08,874.69,0.19823412]
[1757365227739,0.61012345,876.07,874.69,0.19823412]
[1757365228039,0.61012345,876.06,874.69,0.19823412]
[1757365228235,0.61012345,876.05,874.69,0.19823412]
[1757365228438,0.61012345,876.04,874.69,0.19823412]
[1757365228637,0.61012345,876.03,874.69,0.19823412]
[1757365228841,0.61012345,876.02,874.69,0.19823412]
[1757365229042,0.61012345,876.01,874.69,0.19823412]
[1757365229242,0.61012345,876.0,874.69,0.19823412]
[1757365229439,0.61012345,875.99,874.69,0.19823412]
[1757365229738,0.61012345,875.98,874.69,0.19823412]
[1757365229942,0.61012345,875.97,874.69,0.19823412]
[1757365230140,0.61012345,875.96,874.69,0.19823412]
[1757365230445,0.61012345,875.95,874.69,0.19823412]
[1757365230646,0.61012345,875.94,874.69,0.19823412]
[1757365230939,0.61012345,875.93,874.69,0.19823412]
[1757365231142,0.61012345,875.92,874.69,0.19823412]
[1757365231343,0.61012345,875.91,874.69,0.19823412]
[1757365231542,0.61012345,875.9,874.69,0.19823412]
[1757365231741,0.61012345,875.89,874.69,0.19823412]
[1757365231945,1.5151232,876.21,874.69,0.19823412]
[1757365231946,0.61012345,875.88,874.69,0.19823412]
[1757365232141,0.61012345,875.87,874.69,0.19823412]
[1757365232345,1.5151232,876.21,874.69,0.19823412]
[1757365232545,0.61105142,876.2,874.69,0.19823412]
[1757365232744,0.61105142,876.19,874.69,0.19823412]
[1757365232947,0.61105142,876.18,874.69,0.19823412]
[1757365233148,0.61105142,876.17,874.69,0.19823412]
[1757365233346,0.61105142,876.16,874.69,0.19823412]
[1757365233546,0.61105142,876.15,874.69,0.19823412]
[1757365233744,0.61105142,876.14,874.69,0.19823412]
[1757365233947,0.61105142,876.13,874.69,0.19823412]
[1757365234147,0.61105142,876.12,874.69,0.19823412]
[1757365234446,0.61105142,876.11,874.69,0.19823412]
[1757365234650,0.61105142,876.1,874.69,0.19823412]
[1757365234850,0.61105142,876.09,874.69,0.19823412]
[1757365235046,0.61105142,876.08,874.69,0.19823412]
[1757365235250,0.61105142,876.07,874.69,0.19823412]
[1757365235546,0.61105142,876.06,874.69,0.19823412]
[1757365235747,0.61105142,876.05,874.69,0.19823412]
[1757365236046,0.61105142,876.04,874.69,0.19823412]
[1757365236245,0.61105142,876.03,874.69,0.19823412]
[1757365236449,0.61105142,876.02,874.69,0.19823412]
[1757365236647,0.61105142,876.01,874.69,0.19823412]
[1757365236851,0.61105142,876.0,874.69,0.19823412]
[1757365237049,0.61105142,875.99,874.69,0.19823412]
[1757365237247,0.61105142,875.98,874.69,0.19823412]
[1757365237452,0.61105142,875.97,874.69,0.19823412]
[1757365237751,0.61105142,875.96,874.69,0.19823412]
[1757365237952,0.61105142,875.95,874.69,0.19823412]
[1757365238248,0.61105142,875.94,874.69,0.19823412]
[1757365238451,0.61105142,875.93,874.69,0.19823412]
[1757365238750,0.61105142,875.92,874.69,0.19823412]
[1757365238950,0.61105142,875.91,874.69,0.19823412]
[1757365239149,0.61105142,875.9,874.69,0.19823412]
[1757365239449,0.61105142,875.89,874.69,0.19823412]
[1757365239653,0.61105142,875.88,874.69,0.19823412]
[1757365239852,0.61105142,875.87,874.69,0.19823412]
[1757365240053,0.61105142,875.86,874.69,0.19823412]
[1757365240254,0.61105142,875.85,874.69,0.19823412]
[1757365240452,0.61105142,875.84,874.69,0.19823412]
[1757365240652,0.61105142,875.83,874.69,0.19823412]
[1757365240953,0.61105142,875.82,874.69,0.19823412]
[1757365241257,0.61105142,875.81,874.69,0.19823412]
[1757365241457,0.61105142,875.8,874.69,0.19823412]
[1757365241653,0.61105142,875.79,874.69,0.19823412]
[1757365241858,0.61105142,875.78,874.69,0.19823412]
[1757365242053,0.61105142,875.77,874.69,0.19823412]
[1757365242354,0.61105142,875.76,874.69,0.19823412]
[1757365242555,0.61105142,875.75,874.69,0.19823412]
[1757365242757,0.61105142,875.74,874.69,0.19823412]
[1757365242954,0.61105142,875.73,874.69,0.19823412]
[1757365243154,0.61105142,875.72,874.69,0.19823412]
[1757365243454,0.61105142,875.71,874.69,0.19823412]
[1757365243659,0.61105142,875.7,874.69,0.19823412]
[1757365243859,1.5151232,876.06,874.69,0.19823412]
[1757365244158,1.5151232,875.95,874.69,0.19823412]
[1757365244358,0.61371982,875.94,874.69,0.19823412]
[1757365244556,0.61371982,875.93,874.69,0.19823412]
[1757365244856,0.61371982,875.92,874.69,0.19823412]
[1757365245156,0.61371982,875.91,874.69,0.19823412]
[1757365245357,0.61371982,875.9,874.69,0.19823412]
[1757365245656,0.61371982,875.89,874.69,0.19823412]
[1757365245860,0.61371982,875.88,874.69,0.19823412]
[1757365246058,0.61371982,875.87,874.69,0.19823412]
[1757365246262,0.61371982,875.86,874.69,0.19823412]
[1757365246556,0.61371982,875.85,874.69,0.19823412]
[1757365246756,0.61371982,875.84,874.69,0.19823412]
[1757365246959,0.61371982,875.83,874.69,0.19823412]
[1757365247255,0.61371982,875.82,874.69,0.19823412]
[1757365247462,0.61371982,875.81,874.69,0.19823412]
[1757365247661,0.61371982,875.8,874.69,0.19823412]
[1757365247858,0.61371982,875.79,874.69,0.19823412]
[1757365248057,0.61371982,875.78,874.69,0.19823412]
[1757365248362,0.61371982,875.77,874.69,0.19823412]
[1757365248563,0.61371982,875.76,874.69,0.19823412]
[1757365248860,1.5151232,876.0,874.69,0.19823412]
[1757365248861,0.61371982,875.75,874.69,0.19823412]
[1757365249059,0.61371982,875.74,874.69,0.19823412]
[1757365249262,0.61371982,875.73,874.69,0.19823412]
[1757365249463,0.61371982,875.72,874.69,0.19823412]
[1757365249663,0.61371982,875.71,874.69,0.19823412]
[1757365249859,0.61371982,875.7,874.69,0.19823412]
[1757365250065,1.5151232,876.01,874.69,0.19823412]
[1757365250264,0.61435198,876.0,874.69,0.19823412]
[1757365250464,0.61435198,875.99,874.69,0.19823412]
[1757365250662,0.61435198,875.98,874.69,0.19823412]
[1757365250862,0.61435198,875.97,874.69,0.19823412]
[1757365251061,0.61435198,875.96,874.69,0.19823412]
[1757365251262,0.61435198,875.95,874.69,0.19823412]
[1757365251463,0.61435198,875.94,874.69,0.19823412]
[1757365251663,0.61435198,875.93,874.69,0.19823412]
[1757365251867,0.61435198,875.92,874.69,0.19823412]
[1757365252068,0.61435198,875.91,874.69,0.19823412]
[1757365252268,0.61435198,875.9,874.69,0.19823412]
[1757365252568,0.61435198,875.89,874.69,0.19823412]
[1757365252768,0.61435198,875.88,874.69,0.19823412]
[1757365252966,0.61435198,875.87,874.69,0.19823412]
[1757365253269,0.61435198,875.86,874.69,0.19823412]
[1757365253467,0.61435198,875.85,874.69,0.19823412]
[1757365253670,0.61435198,875.84,874.69,0.19823412]
[1757365253972,0.61435198,875.83,874.69,0.19823412]
[1757365254165,0.61435198,875.82,874.69,0.19823412]
[1757365254371,0.61435198,875.81,874.69,0.19823412]
[1757365254572,0.61435198,875.8,874.69,0.19823412]
[1757365254770,0.61435198,875.79,874.69,0.19823412]
[1757365254968,0.61435198,875.78,874.69,0.19823412]
[1757365255171,0.61435198,875.77,874.69,0.19823412]
[1757365255467,0.61435198,875.76,874.69,0.19823412]
[1757365255668,1.5151232,875.92,874.69,0.19823412]
[1757365255669,0.61435198,875.75,874.69,0.19823412]
[1757365255968,0.61435198,875.74,874.69,0.19823412]
[1757365256168,0.61435198,875.73,874.69,0.19823412]
[1757365256372,0.61435198,875.72,874.69,0.19823412]
[1757365256572,0.61435198,875.71,874.69,0.19823412]
[1757365256868,3.5875929,876.85,874.07,1.5159957]
[1757365257066,0.6125793,876.84,874.08,1.5159957]
[1757365257268,0.6125793,876.83,874.09,1.5159957]
[1757365257469,0.6125793,876.82,874.1,1.5159957]
[1757365257671,0.6125793,876.81,874.1,1.5159957]
[1757365257967,0.6125793,876.8,874.1,1.5159957]
[1757365258172,0.6125793,876.79,874.1,1.5159957]
[1757365258371,0.6125793,876.78,874.11,1.5159957]
[1757365258569,0.6125793,876.77,874.11,1.5159957]
[1757365258872,0.6125793,876.76,874.15,1.5159957]
[1757365259072,0.6125793,876.75,874.15,1.5159957]
[1757365259273,0.6125793,876.74,874.15,1.5159957]
[1757365259669,0.6125793,876.74,874.73,0.19834485]
[1757365260073,0.61280103,876.73,874.73,0.19834485]
[1757365260372,2.5625663,877.63,874.73,0.19834485]
[1757365260972,0.61282824,877.62,874.73,0.19834485]
[1757365261169,0.61282824,877.61,874.73,0.19834485]
[1757365261372,2.5625663,877.46,874.73,0.19834485]
[1757365261570,0.61282824,877.45,874.73,0.19834485]
[1757365261774,0.61282824,877.44,874.73,0.19834485]
[1757365262074,0.61282824,877.43,874.73,0.19834485]
[1757365262274,0.61282824,877.42,874.73,0.19834485]
[1757365262474,0.61282824,877.41,874.73,0.19834485]
[1757365262771,0.61282824,877.4,874.73,0.19834485]
[1757365262975,0.61282824,877.39,874.73,0.19834485]
[1757365263276,0.61282824,877.38,874.73,0.19834485]
[1757365263474,0.61282824,877.37,874.73,0.19834485]
[1757365263677,0.61282824,877.36,874.73,0.19834485]
[1757365263877,0.61282824,877.35,874.73,0.19834485]
[1757365264172,2.5625663,877.27,874.73,0.19834485]
[1757365264577,3.17580328,877.26,874.73,0.19834485]
[1757365264774,0.61323698,877.25,874.73,0.19834485]
[1757365264973,0.61323698,877.24,874.73,0.19834485]
[1757365265175,0.61323698,877.23,874.73,0.19834485]
[1757365265374,0.61323698,877.22,874.73,0.19834485]
[1757365265677,3.17580328,877.21,874.73,0.19834485]
[1757365265878,0.61323698,877.2,874.73,0.19834485]
[1757365266179,0.61323698,877.19,874.73,0.19834485]
[1757365266479,0.61323698,877.18,874.73,0.19834485]
[1757365266678,2.5625663,876.85,874.73,0.19834485]
[1757365266978,0.61323698,876.84,874.73,0.19834485]
[1757365267176,2.5625663,876.76,874.73,0.19834485]
[1757365267381,0.61323698,876.75,874.73,0.19834485]
[1757365267675,3.17580328,876.74,874.73,0.19834485]
[1757365267875,0.61323698,876.73,874.73,0.19834485]
[1757365268077,0.61323698,876.72,874.73,0.19834485]
[1757365268280,0.61323698,876.71,874.73,0.19834485]
[1757365268480,0.61323698,876.7,874.73,0.19834485]
[1757365268679,0.61323698,876.69,874.73,0.19834485]
[1757365268976,0.61323698,876.68,874.73,0.19834485]
[1757365269279,0.61323698,876.67,874.73,0.19834485]
[1757365269476,0.61323698,876.66,874.73,0.19834485]
[1757365269774,0.61323698,876.65,874.73,0.19834485]
[1757365269979,0.61323698,876.64,874.73,0.19834485]
[1757365270279,0.61323698,876.63,874.73,0.19834485]
[1757365270476,0.61323698,876.62,874.73,0.19834485]
[1757365270780,0.61323698,876.61,874.73,0.19834485]
[1757365270980,0.61323698,876.6,874.73,0.19834485]
[1757365271178,0.61323698,876.59,874.73,0.19834485]
[1757365271382,0.61323698,876.58,874.73,0.19834485]
[1757365271587,0.61323698,876.57,874.73,0.19834485]
[1757365271779,0.61323698,876.56,874.73,0.19834485]
[1757365272079,0.61323698,876.55,874.73,0.19834485]
[1757365272278,0.61323698,876.54,874.73,0.19834485]
[1757365272481,0.61323698,876.53,874.73,0.19834485]
[1757365272683,0.61323698,876.52,874.73,0.19834485]
[1757365272884,0.61323698,876.51,874.73,0.19834485]
[1757365273081,0.61323698,876.5,874.73,0.19834485]
[1757365273284,0.61323698,876.49,874.73,0.19834485]
[1757365273485,0.61323698,876.48,874.73,0.19834485]
[1757365273685,0.61323698,876.47,874.73,0.19834485]
[1757365273885,0.61323698,876.46,874.73,0.19834485]
[1757365274086,0.61323698,876.45,874.73,0.19834485]
[1757365274284,0.61323698,876.44,874.73,0.19834485]
[1757365274483,2.5625663,876.69,874.73,0.19834485]
[1757365274484,0.61323698,876.43,874.73,0.19834485]
[1757365274684,0.61323698,876.42,874.73,0.19834485]
[1757365274882,0.61323698,876.41,874.73,0.19834485]
[1757365275085,0.61323698,876.4,874.73,0.19834485]
[1757365275285,0.61323698,876.39,874.73,0.19834485]
[1757365275486,0.61323698,876.38,874.73,0.19834485]
[1757365275684,0.61323698,876.37,874.73,0.19834485]
[1757365275885,0.61323698,876.36,874.73,0.19834485]
[1757365276085,0.61323698,876.35,874.73,0.19834485]
[1757365276388,0.61323698,876.34,874.73,0.19834485]
[1757365276589,0.61323698,876.33,874.73,0.19834485]
[1757365276789,1.5329252,875.98,874.73,0.19834485]
[1757365277088,0.61323698,875.97,874.73,0.19834485]
[1757365277289,0.61323698,875.96,874.73,0.19834485]
[1757365277488,0.61323698,875.95,874.73,0.19834485]
[1757365277690,0.61323698,875.94,874.73,0.19834485]
[1757365277886,0.61323698,875.93,874.73,0.19834485]
[1757365278185,0.61323698,875.92,874.73,0.19834485]
[1757365278389,0.61323698,875.91,874.73,0.19834485]
[1757365278587,0.61323698,875.9,874.73,0.19834485]
[1757365278785,0.61323698,875.89,874.73,0.19834485]
[1757365278988,0.61323698,875.88,874.73,0.19834485]
[1757365279186,0.61323698,875.87,874.73,0.19834485]
[1757365279389,0.61323698,875.86,874.73,0.19834485]
[1757365279589,0.61323698,875.85,874.73,0.19834485]
[1757365279788,0.61323698,875.84,874.73,0.19834485]
[1757365279990,0.61323698,875.83,874.73,0.19834485]
[1757365280189,0.61323698,875.82,874.73,0.19834485]
[1757365280386,1.5329252,875.97,874.73,0.19834485]
[1757365280689,0.61450595,875.96,874.73,0.19834485]
[1757365280886,0.61450595,875.95,874.73,0.19834485]
[1757365281085,0.61450595,875.94,874.73,0.19834485]
[1757365281290,0.61450595,875.93,874.73,0.19834485]
[1757365281491,0.61450595,875.92,874.73,0.19834485]
[1757365281687,0.61450595,875.91,874.73,0.19834485]
[1757365281889,2.5625663,876.69,874.73,0.19834485]
[1757365281890,0.61450595,875.9,874.73,0.19834485]
[1757365282087,0.61450595,875.89,874.73,0.19834485]
[1757365282389,0.61450595,875.88,874.73,0.19834485]
[1757365282589,0.61450595,875.87,874.73,0.19834485]
[1757365282889,0.61450595,875.86,874.73,0.19834485]
[1757365283094,0.61450595,875.85,874.73,0.19834485]
[1757365283295,0.61450595,875.84,874.73,0.19834485]
[1757365283593,0.61450595,875.83,874.73,0.19834485]
[1757365283790,0.61450595,875.82,874.73,0.19834485]
[1757365284089,0.61450595,875.81,874.73,0.19834485]
[1757365284289,1.5329252,875.92,874.73,0.19834485]
[1757365284593,2.14749152,875.91,874.73,0.19834485]
[1757365284893,1.5329252,875.88,874.73,0.19834485]
[1757365285092,0.61456632,875.87,874.73,0.19834485]
[1757365285291,0.61456632,875.86,874.73,0.19834485]
[1757365285494,0.61456632,875.85,874.73,0.19834485]
[1757365285691,0.61456632,875.84,874.73,0.19834485]
[1757365285991,0.61456632,875.83,874.73,0.19834485]
[1757365286291,0.61456632,875.82,874.73,0.19834485]
[1757365286494,0.61456632,875.81,874.73,0.19834485]
[1757365286692,1.5329252,875.89,874.73,0.19834485]
[1757365286896,0.61451269,875.88,874.73,0.19834485]
[1757365287094,0.61451269,875.87,874.73,0.19834485]
[1757365287346,0.61451269,875.86,874.73,0.19834485]
[1757365287602,0.61451269,875.85,874.73,0.19834485]
[1757365287794,0.61451269,875.84,874.73,0.19834485]
[1757365287990,1.5329252,875.91,874.73,0.19834485]
[1757365287991,0.61451269,875.83,874.73,0.19834485]
[1757365288191,0.61451269,875.82,874.73,0.19834485]
[1757365288494,0.61451269,875.81,874.73,0.19834485]
[1757365288695,1.5329252,875.91,874.73,0.19834485]
[1757365288892,0.61454701,875.9,874.73,0.19834485]
[1757365289096,0.61454701,875.89,874.73,0.19834485]
[1757365289293,0.61454701,875.88,874.73,0.19834485]
[1757365289493,0.61454701,875.87,874.73,0.19834485]
[1757365289690,0.61454701,875.86,874.73,0.19834485]
[1757365289898,0.61454701,875.85,874.73,0.19834485]
[1757365290092,0.61454701,875.84,874.73,0.19834485]
[1757365290297,0.61454701,875.83,874.73,0.19834485]
[1757365290496,0.61454701,875.82,874.73,0.19834485]
[1757365290698,0.61454701,875.81,874.73,0.19834485]
[1757365290894,1.5329252,875.93,874.73,0.19834485]
[1757365291094,0.61458587,875.92,874.73,0.19834485]
[1757365291299,0.61458587,875.91,874.73,0.19834485]
[1757365291499,0.61458587,875.9,874.73,0.19834485]
[1757365291799,0.61458587,875.89,874.73,0.19834485]
[1757365292101,0.61458587,875.88,874.73,0.19834485]
[1757365292400,0.61458587,875.87,874.73,0.19834485]
[1757365292695,0.61458587,875.86,874.73,0.19834485]
[1757365292900,0.61458587,875.85,874.73,0.19834485]
[1757365293195,0.61458587,875.84,874.73,0.19834485]
[1757365293397,0.61458587,875.83,874.73,0.19834485]
[1757365293597,0.61458587,875.82,874.73,0.19834485]
[1757365293795,0.61458587,875.81,874.73,0.19834485]
[1757365293997,1.5329252,875.94,874.73,0.19834485]
[1757365294198,0.61464604,875.93,874.73,0.19834485]
[1757365294397,0.61464604,875.92,874.73,0.19834485]
[1757365294601,0.61464604,875.91,874.73,0.19834485]
[1757365294901,0.61464604,875.9,874.73,0.19834485]
[1757365295201,0.61464604,875.89,874.73,0.19834485]
[1757365295496,0.61464604,875.88,874.73,0.19834485]
[1757365295698,0.61464604,875.87,874.73,0.19834485]
[1757365295902,0.61464604,875.86,874.73,0.19834485]
[1757365296100,0.61464604,875.85,874.73,0.19834485]
[1757365296298,0.61464604,875.84,874.73,0.19834485]
[1757365296504,0.61464604,875.83,874.73,0.19834485]
[1757365296700,0.61464604,875.82,874.73,0.19834485]
[1757365297003,1.5329252,875.95,874.73,0.19834485]
[1757365297199,3.5875929,876.93,874.73,0.19834485]
[1757365297416,1.5337494,875.93,874.73,0.19834485]
[1757365297704,0.61469912,875.92,874.73,0.19834485]
[1757365297903,0.61469912,875.91,874.73,0.19834485]
[1757365298104,0.61469912,875.9,874.73,0.19834485]
[1757365298298,0.61469912,875.89,874.73,0.19834485]
[1757365298602,0.61469912,875.88,874.73,0.19834485]
[1757365298802,0.61469912,875.87,874.73,0.19834485]
[1757365299001,0.61469912,875.86,874.73,0.19834485]
[1757365299198,0.61469912,875.85,874.73,0.19834485]
[1757365299402,0.61469912,875.84,874.73,0.19834485]
[1757365299600,0.61469912,875.83,874.73,0.19834485]
[1757365299803,0.61469912,875.82,874.73,0.19834485]
[1757365300002,1.5337494,875.9,874.73,0.19834485]
[1757365300200,2.14847938,875.89,874.73,0.19834485]
[1757365300404,1.5337494,875.86,874.73,0.19834485]
[1757365300700,0.61472998,875.85,874.73,0.19834485]
[1757365300899,0.61472998,875.84,874.73,0.19834485]
[1757365301198,0.61472998,875.83,874.73,0.19834485]
[1757365301401,0.61472998,875.82,874.73,0.19834485]
[1757365301600,1.5337494,875.86,874.73,0.19834485]
[1757365301802,0.61476442,875.85,874.73,0.19834485]
[1757365302004,0.61476442,875.84,874.73,0.19834485]
[1757365302202,0.61476442,875.83,874.73,0.19834485]
[1757365302400,0.61476442,875.82,874.73,0.19834485]
[1757365302703,1.5337494,875.86,874.73,0.19834485]
[1757365302901,0.6147895,875.85,874.73,0.19834485]
[1757365303203,0.6147895,875.84,874.73,0.19834485]
[1757365303400,0.6147895,875.83,874.73,0.19834485]
[1757365303602,0.6147895,875.82,874.73,0.19834485]
[1757365303802,1.5337494,875.92,874.73,0.19834485]
[1757365304005,0.61482069,875.91,874.73,0.19834485]